[Event "Titled Tuesday Blitz November 08 Early 2022"]
[White "Mosadeghpour, Masoud"]
[Black "Martinez Alcantara, Jose Eduardo"]
[WhiteFideId "12519278"]
[BlackFideId "3805662"]
[WhiteElo "2393"]
[BlackElo "2705"]
[Result "0-1"]
[Round "07"]
[TimeControl "180+1"]
[Date "2022.11.08"]
[WhiteClock "0:01:06"]
[BlackClock "0:01:02"]

1. e4 {[%clk 0:03:00]}  e5 {[%clk 0:02:58]} 2. Nf3 {[%clk 0:03:00]}  Nc6 {[%clk 0:02:58]} 3. Nc3 {[%clk 0:03:00]}  Nf6 {[%clk 0:02:58]} 4. g3 {[%clk 0:03:01]}  d6 {[%clk 0:02:58]} 5. Bg2 {[%clk 0:03:00]}  g6 {[%clk 0:02:59]} 6. O-O {[%clk 0:03:01]}  Bg7 {[%clk 0:02:59]} 7. d4 {[%clk 0:02:59]}  O-O {[%clk 0:02:59]} 8. dxe5 {[%clk 0:02:57]}  Nxe5 {[%clk 0:02:59]} 9. Nxe5 {[%clk 0:02:56]}  dxe5 {[%clk 0:03:00]} 10. Be3 {[%clk 0:02:56]}  Be6 {[%clk 0:02:54]} 11. Qe2 {[%clk 0:02:55]}  c6 {[%clk 0:02:49]} 12. Rad1 {[%clk 0:02:51]}  Qe7 {[%clk 0:02:46]} 13. f3 {[%clk 0:02:44]}  Qb4 {[%clk 0:02:44]} 14. Rb1 {[%clk 0:02:38]}  Bc4 {[%clk 0:02:43]} 15. Qf2 {[%clk 0:02:32]}  Bxf1 {[%clk 0:02:42]} 16. Bc5 {[%clk 0:02:31]}  Qa5 {[%clk 0:02:38]} 17. Bxf8 {[%clk 0:02:26]}  Bxf8 {[%clk 0:02:37]} 18. Qxf1 {[%clk 0:02:23]}  Rd8 {[%clk 0:02:29]} 19. Rd1 {[%clk 0:02:18]}  Rxd1 {[%clk 0:02:28]} 20. Qxd1 {[%clk 0:02:19]}  Qb6+ {[%clk 0:02:29]} 21. Kh1 {[%clk 0:02:16]}  Qxb2 {[%clk 0:02:30]} 22. Ne2 {[%clk 0:01:58]}  Qxa2 {[%clk 0:02:27]} 23. h4 {[%clk 0:01:58]}  a5 {[%clk 0:02:22]} 24. Qd8 {[%clk 0:01:47]}  Kg7 {[%clk 0:02:15]} 25. g4 {[%clk 0:01:42]}  Qxc2 {[%clk 0:02:04]} 26. Ng3 {[%clk 0:01:42]}  h6 {[%clk 0:01:27]} 27. h5 {[%clk 0:01:35]}  Qc5 {[%clk 0:01:16]} 28. hxg6 {[%clk 0:01:33]}  fxg6 {[%clk 0:01:16]} 29. Qc7+ {[%clk 0:01:24]}  Qe7 {[%clk 0:01:15]} 30. Qxa5 {[%clk 0:01:23]}  Nh7 {[%clk 0:01:13]} 31. Qc3 {[%clk 0:01:18]}  Qh4+ {[%clk 0:01:12]} 32. Kg1 {[%clk 0:01:16]}  Qxg3 {[%clk 0:01:11]} 33. Qa5 {[%clk 0:01:08]}  Ng5 {[%clk 0:01:03]} 34. Qc7+ {[%clk 0:01:06]}  Kg8 {[%clk 0:01:02]} 0-1


[Site "https://www.chess.com"]

[Event "Titled Tuesday Blitz November 08 Early 2022"]
[White "Mouhamad, Joachim"]
[Black "Gareyev, Timur"]
[WhiteFideId "656410"]
[BlackFideId "14200937"]
[WhiteElo "2164"]
[BlackElo "2552"]
[Result "1-0"]
[Round "07"]
[TimeControl "180+1"]
[Date "2022.11.09"]
[WhiteClock "0:00:20"]
[BlackClock "0:00:03"]

1. e4 {[%clk 0:03:00]}  g6 {[%clk 0:02:58]} 2. d4 {[%clk 0:03:00]}  d6 {[%clk 0:02:57]} 3. Nc3 {[%clk 0:02:59]}  a6 {[%clk 0:02:56]} 4. Nf3 {[%clk 0:02:59]}  b5 {[%clk 0:02:46]} 5. Bd3 {[%clk 0:02:55]}  Bg7 {[%clk 0:02:41]} 6. a3 {[%clk 0:02:52]}  Nd7 {[%clk 0:02:36]} 7. O-O {[%clk 0:02:49]}  c5 {[%clk 0:02:30]} 8. Re1 {[%clk 0:02:40]}  cxd4 {[%clk 0:02:29]} 9. Ne2 {[%clk 0:02:40]}  Qb6 {[%clk 0:02:19]} 10. c3 {[%clk 0:02:35]}  dxc3 {[%clk 0:02:16]} 11. Nxc3 {[%clk 0:02:35]}  Bb7 {[%clk 0:02:03]} 12. Nd5 {[%clk 0:02:31]}  Qd8 {[%clk 0:01:50]} 13. Bg5 {[%clk 0:02:23]}  Bxd5 {[%clk 0:01:27]} 14. exd5 {[%clk 0:02:18]}  Bxb2 {[%clk 0:01:27]} 15. Ra2 {[%clk 0:02:05]}  Bf6 {[%clk 0:01:23]} 16. Rae2 {[%clk 0:01:58]}  Kf8 {[%clk 0:01:22]} 17. Bc1 {[%clk 0:01:53]}  Kg7 {[%clk 0:01:06]} 18. h4 {[%clk 0:01:51]}  h5 {[%clk 0:00:45]} 19. Ng5 {[%clk 0:01:33]}  Ne5 {[%clk 0:00:40]} 20. Bb1 {[%clk 0:01:25]}  Rc8 {[%clk 0:00:34]} 21. Bb2 {[%clk 0:01:03]}  Rc4 {[%clk 0:00:27]} 22. Ne4 {[%clk 0:00:52]}  Qb6 {[%clk 0:00:22]} 23. Bd3 {[%clk 0:00:32]}  Nxd3 {[%clk 0:00:20]} 24. Nxf6 {[%clk 0:00:28]}  exf6 {[%clk 0:00:18]} 25. Qxd3 {[%clk 0:00:28]}  Rxh4 {[%clk 0:00:14]} 26. Qf3 {[%clk 0:00:22]}  Qc5 {[%clk 0:00:03]} 27. Re8 {[%clk 0:00:20]} 1-0


[Site "https://www.chess.com"]

[Event "Titled Tuesday Blitz November 08 Early 2022"]
[White "Muminova, Nafisa"]
[Black "Gritsenko, Nikolai"]
[WhiteFideId "14201526"]
[BlackFideId "14112493"]
[WhiteElo "2258"]
[BlackElo "2389"]
[Result "0-1"]
[Round "07"]
[TimeControl "180+1"]
[Date "2022.11.09"]
[WhiteClock "0:00:10"]
[BlackClock "0:00:15"]

1. e4 {[%clk 0:02:48]}  d5 {[%clk 0:02:59]} 2. exd5 {[%clk 0:02:47]}  Nf6 {[%clk 0:03:00]} 3. Nc3 {[%clk 0:02:46]}  Nxd5 {[%clk 0:02:59]} 4. Bc4 {[%clk 0:02:46]}  c6 {[%clk 0:02:59]} 5. Nf3 {[%clk 0:02:45]}  Bf5 {[%clk 0:02:58]} 6. O-O {[%clk 0:02:44]}  e6 {[%clk 0:02:59]} 7. d3 {[%clk 0:02:44]}  Be7 {[%clk 0:02:59]} 8. Ne4 {[%clk 0:02:42]}  O-O {[%clk 0:02:59]} 9. Ng3 {[%clk 0:02:40]}  Bg6 {[%clk 0:02:59]} 10. Bb3 {[%clk 0:02:31]}  Nd7 {[%clk 0:02:58]} 11. c3 {[%clk 0:02:28]}  Rc8 {[%clk 0:02:52]} 12. Qe2 {[%clk 0:02:23]}  Re8 {[%clk 0:02:47]} 13. Re1 {[%clk 0:02:21]}  c5 {[%clk 0:02:39]} 14. Bd2 {[%clk 0:02:19]}  a6 {[%clk 0:02:34]} 15. Rad1 {[%clk 0:02:15]}  b5 {[%clk 0:02:33]} 16. Bc1 {[%clk 0:02:12]}  Bd6 {[%clk 0:02:22]} 17. Ne4 {[%clk 0:02:06]}  Bb8 {[%clk 0:02:17]} 18. Bg5 {[%clk 0:02:01]}  Qc7 {[%clk 0:02:10]} 19. h4 {[%clk 0:01:47]}  h6 {[%clk 0:02:08]} 20. Bc1 {[%clk 0:01:44]}  Ne5 {[%clk 0:01:48]} 21. Ng3 {[%clk 0:01:28]}  Nxd3 {[%clk 0:01:27]} 22. Bxd5 {[%clk 0:01:23]}  Nxe1 {[%clk 0:01:24]} 23. Rxe1 {[%clk 0:01:22]}  exd5 {[%clk 0:01:11]} 24. Qxe8+ {[%clk 0:01:23]}  Rxe8 {[%clk 0:01:11]} 25. Rxe8+ {[%clk 0:01:24]}  Kh7 {[%clk 0:01:10]} 26. h5 {[%clk 0:01:12]}  Bb1 {[%clk 0:01:08]} 27. Ne2 {[%clk 0:01:04]}  Qb7 {[%clk 0:00:56]} 28. Bf4 {[%clk 0:00:53]}  Bxf4 {[%clk 0:00:44]} 29. Nxf4 {[%clk 0:00:53]}  Qd7 {[%clk 0:00:40]} 30. Re1 {[%clk 0:00:39]}  Bxa2 {[%clk 0:00:37]} 31. Ne5 {[%clk 0:00:38]}  Qf5 {[%clk 0:00:33]} 32. g3 {[%clk 0:00:36]}  d4 {[%clk 0:00:30]} 33. cxd4 {[%clk 0:00:35]}  cxd4 {[%clk 0:00:30]} 34. Nf3 {[%clk 0:00:32]}  d3 {[%clk 0:00:23]} 35. Re8 {[%clk 0:00:28]}  Bd5 {[%clk 0:00:19]} 36. Nh4 {[%clk 0:00:26]}  d2 {[%clk 0:00:17]} 37. Nxf5 {[%clk 0:00:09]}  d1=Q+ {[%clk 0:00:16]} 38. Kh2 {[%clk 0:00:10]}  Qh1# {[%clk 0:00:15]} 0-1


[Site "https://www.chess.com"]

[Event "Titled Tuesday Blitz November 08 Early 2022"]
[White "Ozen, Bahadir"]
[Black "Kollars, Dmitrij"]
[WhiteFideId "6337058"]
[BlackFideId "12909572"]
[WhiteElo "2503"]
[BlackElo "2584"]
[Result "1-0"]
[Round "07"]
[TimeControl "180+1"]
[Date "2022.11.08"]
[WhiteClock "0:00:45"]
[BlackClock "0:00:09"]

1. g3 {[%clk 0:03:00]}  d5 {[%clk 0:02:59]} 2. Nf3 {[%clk 0:03:01]}  Bg4 {[%clk 0:02:58]} 3. Bg2 {[%clk 0:03:01]}  c6 {[%clk 0:02:58]} 4. h3 {[%clk 0:03:01]}  Bh5 {[%clk 0:02:57]} 5. O-O {[%clk 0:03:01]}  Nd7 {[%clk 0:02:58]} 6. d3 {[%clk 0:03:01]}  Ngf6 {[%clk 0:02:57]} 7. Qe1 {[%clk 0:03:00]}  e5 {[%clk 0:02:56]} 8. e4 {[%clk 0:03:00]}  Be7 {[%clk 0:02:56]} 9. Nh4 {[%clk 0:02:53]}  O-O {[%clk 0:02:55]} 10. Nf5 {[%clk 0:02:53]}  Re8 {[%clk 0:02:53]} 11. Nxe7+ {[%clk 0:02:53]}  Qxe7 {[%clk 0:02:52]} 12. Nc3 {[%clk 0:02:48]}  Qd6 {[%clk 0:02:16]} 13. Kh1 {[%clk 0:02:40]}  Nc5 {[%clk 0:02:01]} 14. Bg5 {[%clk 0:02:33]}  dxe4 {[%clk 0:01:54]} 15. dxe4 {[%clk 0:02:20]}  h6 {[%clk 0:01:53]} 16. Be3 {[%clk 0:02:19]}  Ne6 {[%clk 0:01:52]} 17. f4 {[%clk 0:02:17]}  exf4 {[%clk 0:01:35]} 18. gxf4 {[%clk 0:02:16]}  Qb4 {[%clk 0:01:34]} 19. e5 {[%clk 0:01:52]}  Nd7 {[%clk 0:01:16]} 20. Ne4 {[%clk 0:01:51]}  Qxb2 {[%clk 0:01:05]} 21. Nd6 {[%clk 0:01:48]}  Re7 {[%clk 0:00:40]} 22. Qg3 {[%clk 0:01:38]}  Qxc2 {[%clk 0:00:34]} 23. f5 {[%clk 0:01:22]}  Ng5 {[%clk 0:00:21]} 24. Bxg5 {[%clk 0:01:22]}  hxg5 {[%clk 0:00:22]} 25. Qxg5 {[%clk 0:01:22]}  f6 {[%clk 0:00:22]} 26. Qxh5 {[%clk 0:01:16]}  Nxe5 {[%clk 0:00:22]} 27. Rad1 {[%clk 0:01:06]}  Rd8 {[%clk 0:00:20]} 28. Ne4 {[%clk 0:01:03]}  Rd3 {[%clk 0:00:13]} 29. Rg1 {[%clk 0:00:56]}  Kf8 {[%clk 0:00:12]} 30. Qh8+ {[%clk 0:00:55]}  Kf7 {[%clk 0:00:13]} 31. Nd6+ {[%clk 0:00:50]}  Rxd6 {[%clk 0:00:12]} 32. Rxd6 {[%clk 0:00:51]}  Qxf5 {[%clk 0:00:13]} 33. Rd8 {[%clk 0:00:50]}  Ke6 {[%clk 0:00:08]} 34. Qg8+ {[%clk 0:00:50]}  Rf7 {[%clk 0:00:09]} 35. Qe8+ {[%clk 0:00:45]}  Re7 {[%clk 0:00:09]} 36. Qg8+ {[%clk 0:00:46]}  Rf7 {[%clk 0:00:09]} 37. Rgd1 {[%clk 0:00:46]}  Nc4 {[%clk 0:00:09]} 38. Re8# {[%clk 0:00:45]} 1-0


[Site "https://www.chess.com"]

[Event "Titled Tuesday Blitz November 08 Early 2022"]
[White "Padmini, Rout"]
[Black "Kowalczyk, Pawel"]
[WhiteFideId "5029295"]
[BlackFideId "1130641"]
[WhiteElo "2296"]
[BlackElo "2324"]
[Result "0-1"]
[Round "07"]
[TimeControl "180+1"]
[Date "2022.11.09"]
[WhiteClock "0:00:03"]
[BlackClock "0:02:02"]

1. e4 {[%clk 0:03:00]}  c5 {[%clk 0:03:00]} 2. Nf3 {[%clk 0:03:00]}  e6 {[%clk 0:03:01]} 3. d4 {[%clk 0:02:59]}  cxd4 {[%clk 0:03:02]} 4. Nxd4 {[%clk 0:03:00]}  Qb6 {[%clk 0:03:03]} 5. Nc3 {[%clk 0:02:58]}  Bc5 {[%clk 0:03:02]} 6. Na4 {[%clk 0:02:42]}  Qa5+ {[%clk 0:03:03]} 7. c3 {[%clk 0:02:41]}  Bxd4 {[%clk 0:03:03]} 8. Qxd4 {[%clk 0:02:39]}  Nf6 {[%clk 0:03:04]} 9. Nc5 {[%clk 0:02:19]}  O-O {[%clk 0:03:03]} 10. Qd6 {[%clk 0:02:15]}  Ne8 {[%clk 0:03:00]} 11. Qd4 {[%clk 0:02:07]}  Nc6 {[%clk 0:03:00]} 12. Qe3 {[%clk 0:02:07]}  Nf6 {[%clk 0:02:58]} 13. Nb3 {[%clk 0:01:55]}  Qh5 {[%clk 0:02:58]} 14. Bd3 {[%clk 0:01:53]}  d5 {[%clk 0:02:56]} 15. exd5 {[%clk 0:01:42]}  exd5 {[%clk 0:02:54]} 16. O-O {[%clk 0:01:40]}  Re8 {[%clk 0:02:52]} 17. Qg3 {[%clk 0:01:39]}  Bf5 {[%clk 0:02:51]} 18. Bxf5 {[%clk 0:01:35]}  Qxf5 {[%clk 0:02:51]} 19. Qf4 {[%clk 0:01:33]}  Qg6 {[%clk 0:02:46]} 20. f3 {[%clk 0:01:31]}  Re2 {[%clk 0:02:45]} 21. Qg3 {[%clk 0:01:19]}  Rae8 {[%clk 0:02:42]} 22. Qxg6 {[%clk 0:01:09]}  hxg6 {[%clk 0:02:42]} 23. Rb1 {[%clk 0:01:08]}  Rc2 {[%clk 0:02:40]} 24. Bd2 {[%clk 0:00:47]}  a5 {[%clk 0:02:27]} 25. Rfd1 {[%clk 0:00:44]}  d4 {[%clk 0:02:17]} 26. Nxd4 {[%clk 0:00:17]}  Nxd4 {[%clk 0:02:17]} 27. cxd4 {[%clk 0:00:18]}  Re2 {[%clk 0:02:17]} 28. Bf4 {[%clk 0:00:07]}  Rxg2+ {[%clk 0:02:17]} 29. Kh1 {[%clk 0:00:07]}  Nd5 {[%clk 0:02:17]} 30. Bd6 {[%clk 0:00:07]}  Rxb2 {[%clk 0:02:13]} 31. Rxb2 {[%clk 0:00:07]}  Rxb2 {[%clk 0:02:14]} 32. Rc1 {[%clk 0:00:07]}  f6 {[%clk 0:02:12]} 33. Rc8+ {[%clk 0:00:06]}  Kf7 {[%clk 0:02:11]} 34. Rd8 {[%clk 0:00:05]}  Rxa2 {[%clk 0:02:09]} 35. h4 {[%clk 0:00:05]}  a4 {[%clk 0:02:08]} 36. Bg3 {[%clk 0:00:04]}  Ne3 {[%clk 0:02:06]} 37. Rd7+ {[%clk 0:00:04]}  Kg8 {[%clk 0:02:05]} 38. Rxb7 {[%clk 0:00:04]}  a3 {[%clk 0:02:04]} 39. Bd6 {[%clk 0:00:03]}  Ra1+ {[%clk 0:02:03]} 40. Kh2 {[%clk 0:00:03]}  a2 {[%clk 0:02:04]} 41. Ra7 {[%clk 0:00:03]}  Nf5 {[%clk 0:02:03]} 42. Bc5 {[%clk 0:00:03]}  Nxh4 {[%clk 0:02:02]} 0-1


[Site "https://www.chess.com"]

[Event "Titled Tuesday Blitz November 08 Early 2022"]
[White "Paravyan, David"]
[Black "Tang, Andrew"]
[WhiteFideId "4194985"]
[BlackFideId "2059630"]
[WhiteElo "2546"]
[BlackElo "2581"]
[Result "0-1"]
[Round "07"]
[TimeControl "180+1"]
[Date "2022.11.08"]
[WhiteClock "0:00:04"]
[BlackClock "0:00:10"]

1. e4 {[%clk 0:03:00]}  e5 {[%clk 0:02:56]} 2. Nf3 {[%clk 0:03:01]}  Nc6 {[%clk 0:02:56]} 3. Nc3 {[%clk 0:03:01]}  Nf6 {[%clk 0:02:56]} 4. d4 {[%clk 0:03:02]}  exd4 {[%clk 0:02:56]} 5. Nxd4 {[%clk 0:03:03]}  Bb4 {[%clk 0:02:56]} 6. Nxc6 {[%clk 0:03:03]}  bxc6 {[%clk 0:02:57]} 7. Bd3 {[%clk 0:03:04]}  O-O {[%clk 0:02:58]} 8. O-O {[%clk 0:03:04]}  d5 {[%clk 0:02:58]} 9. exd5 {[%clk 0:03:04]}  cxd5 {[%clk 0:02:59]} 10. Bg5 {[%clk 0:03:04]}  c6 {[%clk 0:02:59]} 11. Qf3 {[%clk 0:03:05]}  h6 {[%clk 0:02:58]} 12. Bxf6 {[%clk 0:03:05]}  Qxf6 {[%clk 0:02:59]} 13. Qxf6 {[%clk 0:03:06]}  gxf6 {[%clk 0:03:00]} 14. Ne2 {[%clk 0:03:06]}  Bd6 {[%clk 0:03:00]} 15. Nd4 {[%clk 0:03:04]}  c5 {[%clk 0:02:59]} 16. Nf5 {[%clk 0:03:04]}  Bxf5 {[%clk 0:02:59]} 17. Bxf5 {[%clk 0:03:05]}  Be5 {[%clk 0:02:59]} 18. Rab1 {[%clk 0:03:00]}  a5 {[%clk 0:02:59]} 19. b3 {[%clk 0:02:58]}  a4 {[%clk 0:02:59]} 20. Rbd1 {[%clk 0:02:58]}  Rfd8 {[%clk 0:02:59]} 21. g3 {[%clk 0:02:09]}  Bc3 {[%clk 0:02:56]} 22. Rd3 {[%clk 0:02:09]}  d4 {[%clk 0:02:56]} 23. Rf3 {[%clk 0:02:09]}  c4 {[%clk 0:02:53]} 24. bxc4 {[%clk 0:01:59]}  Rab8 {[%clk 0:02:51]} 25. Rd1 {[%clk 0:01:58]}  a3 {[%clk 0:02:42]} 26. c5 {[%clk 0:01:45]}  Kg7 {[%clk 0:01:40]} 27. c6 {[%clk 0:01:38]}  Rdc8 {[%clk 0:01:40]} 28. Bxc8 {[%clk 0:01:37]}  Rxc8 {[%clk 0:01:41]} 29. Rf5 {[%clk 0:01:08]}  Rxc6 {[%clk 0:01:35]} 30. Rb5 {[%clk 0:01:08]}  Kg6 {[%clk 0:01:05]} 31. Kf1 {[%clk 0:01:08]}  Rc7 {[%clk 0:00:56]} 32. Ke2 {[%clk 0:01:06]}  Bb2 {[%clk 0:00:55]} 33. Kd2 {[%clk 0:01:02]}  Bc3+ {[%clk 0:00:48]} 34. Kd3 {[%clk 0:01:02]}  Bb2 {[%clk 0:00:49]} 35. Rb3 {[%clk 0:01:02]}  Kg5 {[%clk 0:00:46]} 36. h3 {[%clk 0:00:56]}  f5 {[%clk 0:00:43]} 37. f4+ {[%clk 0:00:51]}  Kg6 {[%clk 0:00:42]} 38. Re1 {[%clk 0:00:45]}  Rc6 {[%clk 0:00:38]} 39. Re5 {[%clk 0:00:44]}  Rc8 {[%clk 0:00:34]} 40. Re7 {[%clk 0:00:35]}  Rc6 {[%clk 0:00:31]} 41. Re8 {[%clk 0:00:32]}  Kg7 {[%clk 0:00:30]} 42. Re5 {[%clk 0:00:23]}  Rg6 {[%clk 0:00:30]} 43. Kc4 {[%clk 0:00:21]}  Rc6+ {[%clk 0:00:29]} 44. Rc5 {[%clk 0:00:21]}  Re6 {[%clk 0:00:24]} 45. Rxf5 {[%clk 0:00:19]}  Re2 {[%clk 0:00:24]} 46. Kd3 {[%clk 0:00:19]}  Re3+ {[%clk 0:00:23]} 47. Kd2 {[%clk 0:00:17]}  Bc3+ {[%clk 0:00:23]} 48. Rxc3 {[%clk 0:00:18]}  Rxc3 {[%clk 0:00:24]} 49. g4 {[%clk 0:00:12]}  Rxh3 {[%clk 0:00:24]} 50. Rd5 {[%clk 0:00:13]}  Rg3 {[%clk 0:00:23]} 51. Rxd4 {[%clk 0:00:08]}  Rxg4 {[%clk 0:00:23]} 52. Ra4 {[%clk 0:00:07]}  h5 {[%clk 0:00:22]} 53. Rxa3 {[%clk 0:00:07]}  Rxf4 {[%clk 0:00:22]} 54. Ke2 {[%clk 0:00:07]}  h4 {[%clk 0:00:21]} 55. Rf3 {[%clk 0:00:07]}  Ra4 {[%clk 0:00:21]} 56. a3 {[%clk 0:00:07]}  Kg6 {[%clk 0:00:21]} 57. Kf2 {[%clk 0:00:07]}  f5 {[%clk 0:00:21]} 58. Kg2 {[%clk 0:00:07]}  Kg5 {[%clk 0:00:21]} 59. Rb3 {[%clk 0:00:07]}  Rc4 {[%clk 0:00:21]} 60. c3 {[%clk 0:00:07]}  Re4 {[%clk 0:00:19]} 61. Rb2 {[%clk 0:00:07]}  Re3 {[%clk 0:00:17]} 62. Rc2 {[%clk 0:00:07]}  Kg4 {[%clk 0:00:17]} 63. a4 {[%clk 0:00:06]}  f4 {[%clk 0:00:16]} 64. c4 {[%clk 0:00:05]}  h3+ {[%clk 0:00:11]} 65. Kh2 {[%clk 0:00:04]}  f3 {[%clk 0:00:11]} 66. Rc1 {[%clk 0:00:03]}  Re2+ {[%clk 0:00:10]} 67. Kh1 {[%clk 0:00:04]}  Kg3 {[%clk 0:00:10]} 68. Rg1+ {[%clk 0:00:04]}  Rg2 {[%clk 0:00:10]} 0-1


[Site "https://www.chess.com"]

[Event "Titled Tuesday Blitz November 08 Early 2022"]
[White "Parpiev, Isaak"]
[Black "Gonzalez, Francisco Silva"]
[WhiteFideId "34281576"]
[BlackFideId "1512285"]
[WhiteElo "2094"]
[BlackElo "2159"]
[Result "1-0"]
[Round "07"]
[TimeControl "180+1"]
[Date "2022.11.09"]
[WhiteClock "0:00:11"]
[BlackClock "0:00:45"]

1. e4 {[%clk 0:03:00]}  e5 {[%clk 0:03:00]} 2. Nf3 {[%clk 0:02:59]}  Nc6 {[%clk 0:03:00]} 3. Nc3 {[%clk 0:03:00]}  Nf6 {[%clk 0:02:59]} 4. Be2 {[%clk 0:03:00]}  Bb4 {[%clk 0:02:59]} 5. Nd5 {[%clk 0:03:00]}  Nxe4 {[%clk 0:02:58]} 6. Nxb4 {[%clk 0:02:59]}  Nxb4 {[%clk 0:02:57]} 7. Nxe5 {[%clk 0:03:00]}  Qe7 {[%clk 0:02:56]} 8. Nf3 {[%clk 0:03:00]}  d5 {[%clk 0:02:53]} 9. O-O {[%clk 0:03:00]}  O-O {[%clk 0:02:52]} 10. d4 {[%clk 0:02:59]}  Bg4 {[%clk 0:02:50]} 11. h3 {[%clk 0:02:57]}  Bh5 {[%clk 0:02:48]} 12. c3 {[%clk 0:02:52]}  Nc6 {[%clk 0:02:47]} 13. Be3 {[%clk 0:02:49]}  a6 {[%clk 0:02:45]} 14. a4 {[%clk 0:02:48]}  b6 {[%clk 0:02:43]} 15. Re1 {[%clk 0:02:47]}  Qd6 {[%clk 0:02:42]} 16. Qc1 {[%clk 0:02:45]}  Na5 {[%clk 0:02:38]} 17. Qc2 {[%clk 0:02:40]}  Bg6 {[%clk 0:02:36]} 18. Qd1 {[%clk 0:02:39]}  c5 {[%clk 0:02:35]} 19. Ne5 {[%clk 0:02:38]}  c4 {[%clk 0:02:33]} 20. Bf4 {[%clk 0:02:30]}  Qd8 {[%clk 0:02:32]} 21. Bf3 {[%clk 0:02:21]}  f5 {[%clk 0:02:29]} 22. h4 {[%clk 0:02:11]}  Qxh4 {[%clk 0:02:20]} 23. g3 {[%clk 0:02:11]}  Qd8 {[%clk 0:02:17]} 24. Bg2 {[%clk 0:02:10]}  Nb3 {[%clk 0:02:15]} 25. Ra3 {[%clk 0:02:09]}  Re8 {[%clk 0:02:10]} 26. Rxb3 {[%clk 0:02:09]}  cxb3 {[%clk 0:02:09]} 27. Qxb3 {[%clk 0:02:10]}  Kh8 {[%clk 0:01:59]} 28. Bf3 {[%clk 0:01:50]}  Rc8 {[%clk 0:01:56]} 29. Kg2 {[%clk 0:01:48]}  Nf6 {[%clk 0:01:46]} 30. Rh1 {[%clk 0:01:41]}  Kg8 {[%clk 0:01:46]} 31. Bg5 {[%clk 0:01:39]}  Bf7 {[%clk 0:01:35]} 32. Nxf7 {[%clk 0:01:09]}  Kxf7 {[%clk 0:01:33]} 33. Bxf6 {[%clk 0:00:41]}  Kxf6 {[%clk 0:01:32]} 34. Rxh7 {[%clk 0:00:33]}  Re4 {[%clk 0:01:31]} 35. Bxe4 {[%clk 0:00:30]}  fxe4 {[%clk 0:01:31]} 36. Qd1 {[%clk 0:00:28]}  Qe8 {[%clk 0:01:28]} 37. Qg4 {[%clk 0:00:25]}  Qg6 {[%clk 0:01:25]} 38. Qxc8 {[%clk 0:00:17]}  Qxh7 {[%clk 0:01:25]} 39. Qc6+ {[%clk 0:00:17]}  Ke7 {[%clk 0:01:23]} 40. Qc7+ {[%clk 0:00:18]}  Kf8 {[%clk 0:01:22]} 41. Qd8+ {[%clk 0:00:17]}  Kf7 {[%clk 0:01:21]} 42. Qxd5+ {[%clk 0:00:18]}  Kf8 {[%clk 0:01:21]} 43. Qd6+ {[%clk 0:00:18]}  Kf7 {[%clk 0:01:21]} 44. Qxb6 {[%clk 0:00:18]}  Qf5 {[%clk 0:01:21]} 45. Qc7+ {[%clk 0:00:18]}  Kg6 {[%clk 0:01:20]} 46. Qd6+ {[%clk 0:00:18]}  Kh7 {[%clk 0:01:19]} 47. Qf4 {[%clk 0:00:19]}  Qd5 {[%clk 0:01:19]} 48. Qh4+ {[%clk 0:00:18]}  Kg6 {[%clk 0:01:19]} 49. Kh2 {[%clk 0:00:18]}  Kf5 {[%clk 0:01:16]} 50. Qh5+ {[%clk 0:00:18]}  g5 {[%clk 0:01:16]} 51. Qh7+ {[%clk 0:00:18]}  Kg4 {[%clk 0:01:15]} 52. Qh3+ {[%clk 0:00:11]}  Kf3 {[%clk 0:01:14]} 53. Kg1 {[%clk 0:00:11]}  Ke2 {[%clk 0:01:14]} 54. Qg4+ {[%clk 0:00:11]}  Kd2 {[%clk 0:01:14]} 55. Kh2 {[%clk 0:00:05]}  Kd3 {[%clk 0:01:05]} 56. Qd1+ {[%clk 0:00:04]}  Kc4 {[%clk 0:01:04]} 57. Qe2+ {[%clk 0:00:04]}  Kb3 {[%clk 0:01:03]} 58. Kg1 {[%clk 0:00:04]}  Kxa4 {[%clk 0:00:59]} 59. Qxa6+ {[%clk 0:00:04]}  Kb3 {[%clk 0:01:00]} 60. Qe2 {[%clk 0:00:02]}  Ka4 {[%clk 0:00:57]} 61. Qd2 {[%clk 0:00:03]}  Kb3 {[%clk 0:00:56]} 62. Qe2 {[%clk 0:00:03]}  Ka4 {[%clk 0:00:56]} 63. Qd1+ {[%clk 0:00:04]}  Kb5 {[%clk 0:00:54]} 64. b3 {[%clk 0:00:04]}  Kb6 {[%clk 0:00:54]} 65. c4 {[%clk 0:00:04]}  Qf5 {[%clk 0:00:54]} 66. d5 {[%clk 0:00:05]}  Kc5 {[%clk 0:00:54]} 67. Qd2 {[%clk 0:00:05]}  Qf3 {[%clk 0:00:50]} 68. Qe3+ {[%clk 0:00:05]}  Qxe3 {[%clk 0:00:50]} 69. fxe3 {[%clk 0:00:06]}  Kb4 {[%clk 0:00:49]} 70. d6 {[%clk 0:00:06]}  Kxb3 {[%clk 0:00:49]} 71. Kf2 {[%clk 0:00:06]}  Kxc4 {[%clk 0:00:49]} 72. d7 {[%clk 0:00:07]}  g4 {[%clk 0:00:47]} 73. d8=Q {[%clk 0:00:08]}  Kc3 {[%clk 0:00:47]} 74. Qg5 {[%clk 0:00:09]}  Kd2 {[%clk 0:00:45]} 75. Qxg4 {[%clk 0:00:10]}  Kd3 {[%clk 0:00:45]} 76. Qf4 {[%clk 0:00:10]}  Kd2 {[%clk 0:00:45]} 77. Qxe4 {[%clk 0:00:11]}  Kc3 {[%clk 0:00:45]} 78. Qd4+ {[%clk 0:00:12]}  Kc2 {[%clk 0:00:45]} 79. g4 {[%clk 0:00:11]} 1-0


[Site "https://www.chess.com"]